bitfinex-derivatives/quotes_BNBF0:USTF0_20250710
["timestamp","ask_amount","ask_price","bid_price","bid_amount"]
[1752155183237,1.66444042,671.67,670.73,2.220358]
[1752155183436,1.66444042,671.68,670.73,2.220358]
[1752155183741,1.66444042,671.67,670.74,2.220358]
[1752155184837,1.66444042,671.67,670.73,2.220358]
[1752155185343,1.66444042,671.67,670.74,2.220358]
[1752155185640,1.66444042,671.66,670.78,2.220358]
[1752155185844,1.66444042,671.65,670.78,2.220358]
[1752155186043,1.66444042,671.66,670.78,2.220358]
[1752155187243,1.66444042,671.66,670.76,2.220358]
[1752155187542,1.66444042,671.67,670.75,2.220358]
[1752155187940,1.66444042,671.71,670.69,1.879]
[1752155188446,1.66444042,671.7,670.69,1.879]
[1752155188744,1.66444042,671.69,670.69,1.879]
[1752155189140,1.66444042,671.69,670.66,2.220358]
[1752155189441,1.66444042,671.67,670.72,2.220358]
[1752155190344,1.66444042,671.66,670.73,2.220358]
[1752155190644,1.66444042,671.67,670.72,2.220358]
[1752155190839,1.66444042,671.66,670.73,2.220358]
[1752155191042,1.66444042,671.67,670.72,2.220358]
[1752155191544,1.66444042,671.67,670.73,1.952]
[1752155191940,1.66444042,671.63,670.73,1.952]
[1752155192442,1.66444042,671.64,670.73,1.952]
[1752155192846,1.66444042,671.57,670.73,1.952]
[1752155193645,1.66444042,671.56,670.73,1.952]
[1752155194047,1.26852941,671.71,670.73,1.952]
[1752155194244,1.66613931,671.56,670.73,1.952]
[1752155194446,1.66613931,671.57,670.73,1.952]
[1752155194647,1.66613931,671.55,670.73,1.952]
[1752155194946,1.66613931,671.54,670.73,1.952]
[1752155195348,1.66613931,671.55,670.73,1.952]
[1752155195949,1.66613931,671.54,670.73,1.952]
[1752155196246,1.66613931,671.48,670.73,1.952]
[1752155196549,1.66613931,671.47,670.73,1.952]
[1752155196749,1.66613931,671.46,670.73,1.952]
[1752155197445,1.66613931,671.47,670.73,1.952]
[1752155197950,1.66613931,671.48,670.73,1.952]
[1752155199450,1.66613931,671.49,670.73,1.952]
[1752155200955,1.66613931,671.5,670.73,1.952]
[1752155201250,1.66613931,671.53,670.73,1.952]
[1752155203350,1.66613931,671.55,670.73,1.952]
[1752155203552,1.66613931,671.56,670.73,1.952]
[1752155204151,1.66613931,671.57,670.73,1.952]
[1752155204352,1.66613931,671.58,670.73,1.952]
[1752155204549,1.26852941,671.74,670.73,1.952]
[1752155204749,1.6618433,671.58,670.73,1.952]
[1752155205050,1.6618433,671.53,670.73,1.952]
[1752155205449,1.6618433,671.54,670.73,1.952]
[1752155206654,1.6618433,671.65,670.73,1.952]
[1752155207758,1.6618433,671.63,670.73,1.952]
[1752155209060,1.6618433,671.61,670.73,1.952]
[1752155214560,1.6618433,671.6,670.73,1.952]
[1752155215358,1.6618433,671.59,670.73,1.952]
[1752155216963,1.6618433,671.63,670.73,1.952]
[1752155217259,1.6618433,671.6,670.73,1.952]
[1752155217463,1.6618433,671.59,670.42,2.220358]
[1752155217659,1.6618433,671.59,670.43,2.220358]
[1752155217963,1.6618433,671.59,670.42,2.220358]
[1752155218463,1.6618433,671.58,670.43,2.220358]
[1752155219164,1.6618433,671.54,670.38,2.220358]
[1752155219366,1.6618433,671.53,670.38,2.220358]
[1752155219559,1.6618433,671.53,670.39,2.220358]
[1752155220364,1.6618433,671.53,670.4,1.977]
[1752155221064,1.6618433,671.53,670.4,4.197358]
[1752155221965,1.6618433,671.5,670.48,2.220358]
[1752155222268,1.6618433,671.49,670.51,2.220358]
[1752155222465,1.6618433,671.48,670.52,2.220358]
[1752155222865,1.6618433,671.49,670.51,2.220358]
[1752155223469,1.26490263,671.61,670.52,2.220358]
[1752155223470,1.6618433,671.48,670.52,2.220358]
[1752155224170,1.6618433,671.47,670.54,2.220358]
[1752155224370,1.6618433,671.47,670.55,2.220358]
[1752155225070,1.6618433,671.46,670.54,2.220358]
[1752155225471,1.6618433,671.45,670.55,2.220358]
[1752155225670,1.6618433,671.46,670.55,2.220358]
[1752155226267,1.6618433,671.48,670.51,2.220358]
[1752155227371,1.6618433,671.47,670.52,2.220358]
[1752155227770,1.6618433,671.47,670.53,2.220358]
[1752155228170,1.6618433,671.47,670.52,2.220358]
[1752155228474,1.6618433,671.48,670.5,2.220358]
[1752155229072,1.6618433,671.48,670.48,2.220358]
[1752155229475,1.6618433,671.48,670.49,2.220358]
[1752155230375,1.6618433,671.48,670.5,2.220358]
[1752155231475,1.6618433,671.47,670.51,2.220358]
[1752155231674,1.6618433,671.47,670.5,2.220358]
[1752155232371,1.6618433,671.47,670.51,2.220358]
[1752155233671,1.6618433,671.48,670.47,2.220358]
[1752155234072,1.6618433,671.48,670.49,2.220358]
[1752155234771,1.6618433,671.47,670.5,2.220358]
[1752155236471,1.6618433,671.47,670.51,2.220358]
[1752155237180,1.6618433,671.46,670.52,2.220358]
[1752155237379,1.6618433,671.46,670.4,1.977]
[1752155237380,1.6618433,671.46,670.53,2.220358]
[1752155238578,1.6618433,671.46,670.54,2.220358]
[1752155238979,1.6618433,671.46,670.53,2.220358]
[1752155239283,1.6618433,671.43,670.59,2.220358]
[1752155239484,1.6618433,671.43,670.6,2.220358]
[1752155240590,1.6618433,671.42,670.61,2.220358]
[1752155240790,1.6618433,671.42,670.4,1.977]
[1752155240791,1.6618433,671.41,670.64,2.220358]
[1752155241089,1.6618433,671.3,670.53,2.220358]
[1752155241291,1.6618433,671.28,670.52,2.220358]
[1752155241787,1.6618433,671.28,670.53,2.220358]
[1752155241992,1.6618433,671.19,670.44,2.220358]
[1752155243493,1.6618433,671.19,670.43,2.220358]
[1752155243992,1.6618433,671.24,670.4,1.977]
[1752155246192,1.6618433,671.38,670.43,2.220358]
[1752155246392,1.6618433,671.38,670.44,2.220358]
[1752155248390,1.6618433,671.38,670.45,2.220358]
[1752155248693,1.6618433,671.37,670.44,2.220358]
[1752155249397,1.6618433,671.37,670.43,2.220358]
[1752155249594,1.6618433,671.18,670.4,1.977]
[1752155249796,1.6618433,671.13,670.4,1.977]
[1752155249995,1.6618433,671.1,670.4,1.977]
[1752155250296,1.6618433,671.11,670.4,1.977]
[1752155252405,1.6618433,671.12,670.3,0.25911462]
[1752155253707,1.6618433,671.11,670.3,0.25911462]
[1752155254105,1.6618433,671.12,670.3,0.25911462]
[1752155254902,1.6618433,671.06,670.3,0.25911462]
[1752155255502,1.6618433,671.07,670.31,1.598]
[1752155255907,1.6618433,671.06,670.31,1.598]
[1752155256509,1.6618433,671.07,670.31,1.598]
[1752155256805,1.6618433,671.09,670.31,1.598]
[1752155257409,1.6618433,671.1,670.31,1.598]
[1752155258509,1.6618433,671.11,670.31,1.598]
[1752155262010,1.6618433,671.08,670.31,1.598]
[1752155262411,1.6618433,671.01,670.31,1.598]
[1752155262911,1.6618433,671.0,670.31,1.598]
[1752155264413,1.6618433,671.01,670.31,1.598]
[1752155264913,1.6618433,671.0,670.31,1.598]
[1752155265117,1.6618433,671.01,670.31,1.598]
[1752155265313,1.6618433,671.0,670.31,1.598]
[1752155265513,1.6618433,670.99,670.31,1.598]
[1752155266313,1.26344617,671.11,670.31,1.598]
[1752155266314,1.6618433,671.0,670.31,1.598]
[1752155267721,1.6618433,670.97,670.31,1.598]
[1752155268017,1.6618433,670.93,670.31,1.598]
[1752155268221,1.6618433,670.94,670.31,1.598]
[1752155268520,1.6618433,670.95,670.31,1.598]
[1752155269223,1.6618433,670.96,670.31,1.598]
[1752155270322,1.6618433,670.97,670.31,1.598]
[1752155270532,1.6618433,670.96,670.31,1.598]
[1752155271224,1.6618433,670.91,670.31,1.598]
[1752155271922,2.92528947,670.9,670.31,1.598]
[1752155272124,1.26344617,670.89,670.31,1.598]
[1752155272319,1.6618433,670.82,670.31,1.598]
[1752155272524,2.92528947,670.81,670.31,1.598]
[1752155272724,1.26344617,670.8,670.31,1.598]
[1752155272924,1.26344617,670.79,670.31,1.598]
[1752155273221,1.6618433,670.81,670.31,1.598]
[1752155273427,1.6618433,670.82,670.31,1.598]
[1752155273626,1.26344617,670.92,670.31,1.598]
[1752155273823,1.6564512,670.82,670.31,1.598]
[1752155274125,1.6564512,670.84,670.31,1.598]
[1752155274525,5.55494857,671.61,669.89,0.25953493]
[1752155274526,1.6564512,670.8,669.89,0.25953493]
[1752155274925,1.6564512,670.82,669.89,0.25953493]
[1752155275421,1.6564512,670.83,669.89,0.25953493]
[1752155276222,1.6564512,670.82,669.89,0.25953493]
[1752155276425,1.6564512,670.8,669.89,0.25953493]
[1752155276823,1.6564512,670.71,669.89,0.25953493]
[1752155277322,1.6564512,670.7,669.89,0.25953493]
[1752155277527,1.6564512,670.72,669.89,0.25953493]
[1752155278023,1.6564512,670.72,669.9,1.834]
[1752155278323,1.6564512,670.73,669.9,1.834]
[1752155279327,1.6564512,670.74,669.9,1.834]
[1752155279522,1.6564512,670.75,669.9,1.834]
[1752155280927,1.6564512,670.83,669.9,1.834]
[1752155281227,1.6564512,670.82,669.9,1.834]
[1752155281427,1.6564512,670.83,669.9,1.834]
[1752155281624,1.6564512,670.91,669.9,1.834]
[1752155282926,1.6564512,670.9,669.9,1.834]
[1752155283425,1.6564512,670.91,669.9,1.834]
[1752155283825,1.6564512,670.9,669.9,1.834]
[1752155285425,1.6564512,670.91,669.9,1.834]
[1752155286429,1.6564512,670.92,669.9,1.834]
[1752155286629,1.6564512,670.91,669.9,1.834]
[1752155287030,1.6564512,670.93,669.9,1.834]
[1752155287331,1.6564512,670.92,669.9,1.834]
[1752155288435,1.6564512,670.91,669.9,1.834]
[1752155288638,1.6564512,670.94,669.9,1.834]
[1752155289135,1.6564512,670.97,669.9,1.834]
[1752155289333,1.6564512,670.96,669.9,1.834]
[1752155289539,1.6564512,670.95,669.9,1.834]
[1752155289836,1.6564512,670.96,669.9,1.834]
[1752155290340,1.6564512,670.95,669.9,1.834]
[1752155292439,1.6564512,670.94,669.9,1.834]
[1752155293337,1.6564512,670.93,669.9,1.834]
[1752155294142,2.22197943,671.06,669.9,1.834]
[1752155294641,3.33296914,671.19,669.9,1.834]
[1752155294842,5.55494857,671.71,669.9,1.834]
[1752155294843,2.20613388,671.03,669.9,1.834]
[1752155295047,1.65460041,670.91,669.9,1.834]
[1752155295541,2.20613388,671.03,669.9,1.834]
[1752155295944,3.33296914,671.15,669.9,1.834]
[1752155296347,1.26114172,671.14,669.9,1.834]
[1752155296547,1.26114172,671.13,669.9,1.834]
[1752155296846,3.33296914,671.15,669.9,1.834]
[1752155296847,1.26114172,671.12,669.9,1.834]
[1752155297043,1.26114172,671.11,669.9,1.834]
[1752155297342,1.65536303,670.9,669.9,1.834]
[1752155298842,1.65536303,670.93,669.9,1.834]
[1752155299047,1.65536303,671.0,669.9,1.834]
[1752155299343,1.65536303,670.99,669.9,1.834]
[1752155300148,1.65536303,671.0,669.9,1.834]
[1752155300443,1.65536303,670.99,669.9,1.834]
[1752155300644,1.65536303,670.98,669.9,1.834]
[1752155302845,1.65536303,670.97,669.9,1.834]
[1752155306348,1.65536303,670.96,669.9,1.834]
[1752155307555,1.65536303,670.95,669.9,1.834]
[1752155307750,1.65536303,670.94,669.9,1.834]
[1752155308551,1.65536303,670.93,669.9,1.834]
[1752155309554,1.65536303,670.92,669.91,2.21003271]
[1752155310550,1.65536303,670.91,669.93,2.21003271]
[1752155310755,1.65536303,670.9,669.93,2.21003271]
[1752155311353,1.65536303,670.9,669.94,2.21003271]
[1752155312354,1.65536303,670.89,669.94,2.21003271]
[1752155312658,1.65536303,670.89,669.95,2.21003271]
[1752155313559,1.65536303,670.89,669.96,2.21003271]
[1752155313753,1.65536303,670.98,669.9,1.834]
[1752155314359,1.65536303,670.97,669.9,1.834]
[1752155314856,1.65536303,670.96,669.9,1.834]
[1752155315561,1.65536303,670.95,669.9,1.834]
[1752155317364,1.65536303,670.88,669.9,1.834]
[1752155318058,1.65536303,670.87,669.9,1.834]
[1752155318262,5.55494857,672.19,669.9,1.834]
[1752155318263,1.65536303,670.86,669.9,1.834]
[1752155318659,1.65536303,670.81,669.9,1.834]
[1752155318865,1.65536303,670.78,669.9,1.834]
[1752155319159,1.65536303,670.82,669.9,1.834]
[1752155319371,1.65536303,670.8,669.9,1.834]
[1752155319674,1.65536303,670.71,669.9,1.834]
[1752155319864,1.65536303,670.7,669.9,1.834]
[1752155320165,1.65536303,670.5,669.9,1.834]
[1752155320361,1.65536303,670.51,669.9,1.834]
[1752155320566,1.65536303,670.5,669.9,1.834]
[1752155321363,1.26736613,670.66,669.9,1.834]
[1752155321364,1.65536303,670.51,669.9,1.834]
[1752155321862,0.2596269,670.48,669.9,1.834]
[1752155322066,1.91498993,670.48,669.9,1.834]
[1752155323367,1.65536303,670.47,669.9,1.834]
[1752155324264,1.65536303,670.49,669.9,1.834]
[1752155325275,1.65536303,670.5,669.9,1.834]
[1752155325869,1.65536303,670.55,669.9,1.834]
[1752155326364,1.91495894,670.64,669.9,1.834]
[1752155328166,1.65536303,670.63,669.9,1.834]
[1752155328370,1.91495894,670.64,669.9,1.834]
[1752155328972,1.91495894,670.64,669.82,0.2596269]
[1752155329569,0.25959591,670.64,669.82,0.2596269]
[1752155330576,1.91495894,670.64,669.82,0.2596269]
[1752155332173,1.91495894,670.64,669.83,1.793]
[1752155333579,1.65536303,670.63,669.83,1.793]
[1752155333778,1.91495894,670.64,669.83,1.793]
[1752155335981,1.65536303,670.62,669.83,1.793]
[1752155336477,1.65536303,670.61,669.83,1.793]
[1752155337076,1.65536303,670.56,669.83,1.793]
[1752155338781,1.65536303,670.57,669.83,1.793]
[1752155338982,1.65536303,670.56,669.83,1.793]
[1752155339483,1.65536303,670.57,669.83,1.793]
[1752155339685,1.65536303,670.58,669.83,1.793]
[1752155339880,1.91495894,670.64,669.83,1.793]
[1752155344386,1.65536303,670.62,669.83,1.793]
[1752155344886,1.65536303,670.63,669.83,1.793]
[1752155347488,1.91495894,670.64,669.83,1.793]
[1752155347688,1.65536303,670.63,669.83,1.793]
[1752155347988,1.91495894,670.64,669.83,1.793]
[1752155350492,1.65536303,670.63,669.83,1.793]
[1752155351296,1.91495894,670.64,669.83,1.793]
[1752155355894,1.65536303,670.63,669.83,1.793]
[1752155356604,1.91495894,670.64,669.83,1.793]
[1752155356800,0.25959591,670.64,669.83,1.793]
[1752155359203,0.25959591,670.64,669.82,0.2596269]
[1752155361504,0.25959591,670.64,669.83,1.72]
[1752155369317,1.91495894,670.64,669.83,1.72]
[1752155370509,1.65536303,670.62,669.83,1.72]
[1752155370709,1.65536303,670.61,669.83,1.72]
[1752155371705,1.65536303,670.57,669.83,1.72]
[1752155372210,1.65536303,670.56,669.83,1.72]
[1752155374012,1.65536303,670.57,669.83,1.72]
[1752155374306,1.65536303,670.55,669.83,1.72]
[1752155374507,1.65536303,670.56,669.83,1.72]
[1752155375313,1.65536303,670.55,669.83,1.72]
[1752155376214,1.65536303,670.54,669.83,1.72]
[1752155376410,1.65536303,670.59,669.83,1.72]
[1752155377415,1.65536303,670.57,669.83,1.72]
[1752155377912,1.65536303,670.56,669.83,1.72]
[1752155378317,1.65536303,670.55,669.83,1.72]
[1752155379311,1.65536303,670.54,669.83,1.72]
[1752155379714,1.65536303,670.55,669.83,1.72]
[1752155380416,1.65536303,670.4,669.83,1.72]
[1752155381312,1.65536303,670.38,669.83,1.72]
[1752155382017,1.65536303,670.43,669.83,1.72]
[1752155382513,1.65536303,670.41,669.83,1.72]
[1752155383013,1.65536303,670.4,669.83,1.72]
[1752155383217,1.65536303,670.39,669.83,1.72]
[1752155383715,1.65536303,670.41,669.83,1.72]
[1752155384327,1.65536303,670.4,669.83,1.72]
[1752155384518,1.65536303,670.42,669.83,1.72]
[1752155386117,1.65536303,670.44,669.83,1.72]
[1752155386318,1.65536303,670.5,669.83,1.72]
[1752155388322,1.65536303,670.5,669.83,3.93003271]
[1752155388620,1.65536303,670.5,669.83,1.72]
[1752155389016,1.65536303,670.48,669.84,2.21003271]
[1752155392426,1.65536303,670.46,669.83,1.72]
[1752155392636,1.65536303,670.45,669.85,2.21003271]
[1752155393128,1.65536303,670.43,669.83,3.93003271]
[1752155393622,1.65536303,670.43,669.83,1.72]
[1752155394627,1.65536303,670.43,669.83,3.93003271]
[1752155395022,1.65536303,670.46,669.83,1.72]
[1752155401034,1.65536303,670.49,669.83,1.72]
[1752155401230,1.65536303,670.51,669.83,3.93003271]
[1752155403932,1.65536303,670.51,669.84,2.21003271]
[1752155404937,1.65536303,670.49,669.9,2.21003271]
[1752155405438,1.65536303,670.5,669.87,2.21003271]
[1752155406542,1.65536303,670.56,669.92,2.21003271]
[1752155406741,1.65536303,670.55,669.92,2.21003271]
[1752155407043,1.65536303,670.56,669.92,2.21003271]
[1752155407239,1.65536303,670.58,669.83,1.72]
[1752155407939,1.65536303,670.59,669.83,1.72]
[1752155408341,1.65536303,670.62,669.83,1.72]
[1752155413440,1.65536303,670.6,669.83,1.72]
[1752155413648,1.65536303,670.6,669.82,0.2596269]
[1752155413845,1.65536303,670.58,669.84,2.21003271]
[1752155414547,1.65536303,670.56,669.91,2.21003271]
[1752155414743,1.65536303,670.58,669.88,2.21003271]
[1752155414947,1.65536303,670.58,669.89,2.21003271]
[1752155415143,1.65536303,670.6,669.89,2.21003271]
[1752155415443,1.65536303,670.6,669.82,0.2596269]
[1752155415444,1.65536303,670.6,669.92,2.21003271]
[1752155415644,1.65536303,670.61,669.92,2.21003271]
[1752155416143,1.65536303,670.65,669.96,2.21003271]
[1752155416348,1.65536303,670.72,670.03,2.21003271]
[1752155416549,1.65536303,670.73,670.02,2.21003271]
[1752155417450,1.65536303,670.74,670.01,2.21003271]
[1752155418250,1.65536303,670.75,669.99,2.21003271]
[1752155418450,1.65536303,670.76,669.99,2.21003271]
[1752155418649,1.65536303,670.76,669.98,2.21003271]
[1752155419447,1.65536303,670.77,669.97,2.21003271]
[1752155419850,1.65536303,670.78,669.95,2.21003271]
[1752155420456,1.65536303,670.79,669.94,2.21003271]
[1752155421655,1.91492409,670.8,669.94,2.21003271]
[1752155422453,1.91492409,670.8,669.93,4.21103271]
[1752155422950,0.25956106,670.8,669.93,4.21103271]
[1752155423148,1.93047042,670.8,669.93,4.21103271]
[1752155423453,0.25956106,670.8,669.93,4.21103271]
[1752155423654,1.67090936,670.79,669.96,2.21003271]
[1752155423953,1.67090936,670.79,669.95,2.21003271]
[1752155424355,1.93047042,670.8,669.95,2.21003271]
[1752155424652,0.25956106,670.8,669.93,2.001]
[1752155432854,1.66950258,670.75,669.93,2.001]
[1752155433861,1.66950258,670.74,669.93,2.001]
[1752155434760,1.66950258,670.67,669.93,2.001]
[1752155434957,1.66950258,670.65,669.93,2.001]
[1752155437661,1.66950258,670.62,669.93,2.001]
[1752155442557,1.66950258,670.61,669.93,2.001]
[1752155442762,1.66950258,670.59,669.93,2.001]
[1752155443458,1.66950258,670.6,669.93,2.001]
[1752155443758,1.66950258,670.61,669.93,2.001]
[1752155443961,1.66950258,670.71,669.93,2.001]
[1752155446366,1.66950258,670.72,669.93,2.001]
[1752155446659,1.66950258,670.71,669.93,2.001]
[1752155447063,1.66950258,670.72,669.93,2.001]
[1752155447464,1.66950258,670.73,669.93,2.001]
[1752155447662,1.66950258,670.72,669.93,2.001]
[1752155447862,1.92906364,670.8,669.93,2.001]
[1752155450963,1.66950258,670.78,669.93,2.001]
[1752155453868,1.66950258,670.77,669.93,2.001]
[1752155456269,1.66950258,670.76,669.93,4.21103271]
[1752155457061,0.25956106,670.8,669.96,2.21003271]
[1752155457062,1.66950258,670.75,669.96,2.21003271]
[1752155457466,1.66950258,670.73,670.0,2.21003271]
[1752155458468,1.66950258,670.73,670.01,2.21003271]
[1752155459465,1.66950258,670.72,670.02,2.21003271]
[1752155459869,1.66950258,670.72,670.03,2.21003271]
[1752155460566,1.66950258,670.72,670.04,2.21003271]
[1752155461172,1.66950258,670.74,669.99,2.21003271]
[1752155461568,1.66950258,670.8,669.9,2.21003271]
[1752155462571,1.66950258,670.8,669.91,2.21003271]
[1752155462772,1.66950258,670.8,669.9,2.21003271]
[1752155462970,1.66950258,670.88,670.02,2.21003271]
[1752155463168,1.92899396,671.02,670.16,2.21003271]
[1752155463573,0.25949138,671.02,670.16,2.21003271]
[1752155464372,0.25949138,671.02,670.15,2.21003271]
[1752155465473,0.25949138,671.02,670.14,2.21003271]
[1752155466373,0.25949138,671.02,670.12,2.21003271]
[1752155466672,0.25949138,671.02,670.11,2.21003271]
[1752155466874,0.25949138,671.02,670.1,2.21003271]
[1752155467078,0.25949138,671.02,670.08,2.21003271]
[1752155467277,0.25949138,671.02,669.92,1.893]
[1752155467278,0.25949138,671.02,670.07,2.21003271]
[1752155467478,0.25949138,671.02,670.08,2.21003271]
[1752155468278,0.25949138,671.02,670.07,2.21003271]
[1752155468974,0.25949138,671.02,670.04,2.21003271]
[1752155469773,0.25949138,671.02,670.03,2.21003271]
[1752155470280,0.25949138,671.02,670.02,2.21003271]
[1752155470681,0.25949138,671.02,670.03,2.21003271]
[1752155471375,0.25949138,671.02,669.92,1.893]
[1752155471376,0.25949138,671.02,670.02,2.21003271]
[1752155471776,1.66950258,671.12,670.02,2.21003271]
[1752155471981,0.25944882,671.03,670.02,2.21003271]
[1752155473383,0.25944882,671.03,670.01,2.21003271]
[1752155473581,0.25944882,671.03,670.2,1.66392129]
[1752155473885,0.25944882,671.03,670.21,1.66392129]
[1752155474184,0.25944882,671.03,670.2,1.66392129]
[1752155475084,0.25944882,671.03,670.21,1.66392129]
[1752155475381,0.25944882,671.03,670.2,1.66392129]
[1752155476485,0.25944882,671.03,670.19,1.66392129]
[1752155476687,0.25944882,671.03,670.2,1.66392129]
[1752155476988,0.25944882,671.03,670.22,1.66392129]
[1752155477386,0.25944882,671.03,670.21,1.66392129]
[1752155478791,0.25944882,671.03,670.24,1.66392129]
[1752155479992,0.25944882,671.03,670.25,1.66392129]
[1752155480293,0.25944882,671.03,670.24,1.66392129]
[1752155480491,0.25944882,671.03,670.26,1.66392129]
[1752155480804,0.25944882,671.03,670.0,3.31504907]
[1752155480805,0.25944882,671.03,670.25,1.66392129]
[1752155481194,1.66950258,671.17,670.14,1.66392129]
[1752155481392,0.25940337,671.17,670.13,1.66392129]
[1752155481797,0.25940337,671.17,670.14,1.66392129]
[1752155482091,0.25940337,671.17,670.13,1.66392129]
[1752155482498,0.25940337,671.17,670.17,1.66392129]
[1752155482997,0.25940337,671.17,670.18,1.66392129]
[1752155483497,0.25940337,671.17,670.17,1.66392129]
[1752155483899,1.66950258,671.17,670.25,1.66392129]
[1752155484198,1.66950258,671.16,670.27,1.66392129]
[1752155484400,1.66950258,671.17,670.26,1.66392129]
[1752155485098,1.66950258,671.18,670.27,1.66392129]
[1752155485298,1.66950258,671.18,670.26,1.66392129]
[1752155485496,1.66950258,671.19,670.25,1.66392129]
[1752155486300,1.66950258,671.19,670.24,1.66392129]
[1752155486600,2.9337253,671.33,670.23,1.66392129]
[1752155486801,1.66950258,671.33,670.23,1.66392129]
[1752155486996,1.66950258,671.34,670.24,1.66392129]
[1752155487198,1.66950258,671.35,670.23,1.66392129]
[1752155487496,1.66950258,671.36,670.24,1.66392129]
[1752155487700,1.92885859,671.37,670.24,1.66392129]
[1752155488300,1.92885859,671.37,670.23,1.66392129]
[1752155489401,0.25935601,671.37,670.22,1.66392129]
[1752155489603,1.66950258,671.3,670.35,1.66392129]
[1752155490298,1.66950258,671.31,670.34,1.66392129]
[1752155490701,1.26422272,671.43,670.49,1.66392129]
[1752155491000,1.66950258,671.46,670.5,1.66392129]
[1752155491302,1.92881704,671.47,670.48,1.66392129]
[1752155492299,0.25931446,671.47,670.46,1.66392129]
[1752155493105,0.25931446,671.47,670.45,1.66392129]
[1752155493301,0.25931446,671.47,670.31,2.21003271]
[1752155493302,0.25931446,671.47,670.43,1.66392129]
[1752155494207,0.25931446,671.47,669.99,0.25944882]
[1752155494208,0.25931446,671.47,670.42,1.66392129]
[1752155494901,0.25931446,671.47,670.44,1.66392129]
[1752155495103,0.25931446,671.47,670.42,1.66392129]
[1752155496405,0.25931446,671.47,670.41,1.66392129]
[1752155497309,0.25931446,671.47,670.4,1.66392129]
[1752155498412,0.25931446,671.47,669.99,0.25944882]
[1752155498413,0.25931446,671.47,670.39,1.66392129]
[1752155498607,0.25931446,671.47,670.4,1.66392129]
[1752155499304,0.25931446,671.47,670.39,1.66392129]
[1752155499509,0.25931446,671.47,670.4,1.66392129]
[1752155500206,0.25931446,671.47,670.39,1.66392129]
[1752155500408,0.25931446,671.47,670.4,1.66392129]
[1752155502209,0.25931446,671.47,670.41,1.66392129]
[1752155503413,0.25931446,671.47,670.42,1.66392129]
[1752155504209,0.25931446,671.47,670.41,1.66392129]
[1752155504411,0.25931446,671.47,670.42,1.66392129]
[1752155504616,0.25931446,671.47,670.32,1.66392129]
[1752155506115,1.66950258,671.46,670.23,1.66392129]
[1752155506516,1.66950258,671.46,670.24,1.66392129]
[1752155508318,1.66950258,671.46,670.25,1.66392129]
[1752155509621,1.66950258,671.45,670.25,1.66392129]
[1752155510420,1.66950258,671.44,670.28,1.66392129]
[1752155511522,1.66950258,671.43,670.28,1.66392129]
[1752155512419,1.66950258,671.4,670.29,1.66392129]
[1752155513222,1.66950258,671.4,670.3,3.61692129]
[1752155513424,1.66950258,671.4,670.31,1.66392129]
[1752155514020,1.66950258,671.4,670.3,3.61692129]
[1752155514325,1.66950258,671.39,670.31,1.66392129]
[1752155514621,1.66950258,671.39,670.33,1.66392129]
[1752155515421,1.66950258,671.38,670.35,1.66392129]
[1752155516026,1.66950258,671.28,670.3,1.953]
[1752155517525,1.66950258,671.27,670.3,1.953]
[1752155518026,1.66950258,671.23,670.34,1.66392129]
[1752155518427,1.66950258,671.22,670.36,1.66392129]
[1752155519024,1.66950258,671.23,670.34,1.66392129]
[1752155519625,1.66950258,671.22,670.36,1.66392129]
[1752155520628,1.66950258,671.25,670.3,3.61692129]
[1752155521024,1.66950258,671.15,670.3,1.953]
[1752155522325,1.66950258,671.14,670.3,1.953]
[1752155522926,1.66950258,671.13,670.3,1.953]
[1752155528335,1.66950258,671.12,670.3,1.953]
[1752155530336,1.66950258,671.08,670.3,1.953]
[1752155530532,1.66950258,671.07,670.3,1.953]
[1752155530732,1.66647322,671.07,670.3,1.953]
[1752155532132,1.66647322,671.06,670.3,1.953]
[1752155532332,3.46834728,671.21,670.3,1.953]
[1752155532333,1.66647322,671.07,670.3,1.953]
[1752155532736,1.66647322,671.06,670.3,1.953]
[1752155533133,1.66647322,671.07,670.3,1.953]
[1752155534434,1.66647322,671.06,670.3,1.953]
[1752155535535,1.66647322,671.12,670.34,1.66515729]
[1752155536943,1.66647322,671.13,670.33,1.66515729]
[1752155537648,1.26119657,671.26,670.3,1.953]